[Event "1st Festival ChessInLyon-GM 2024"]
[Site "Lyon"]
[Date "2024.04.23"]
[Round "2.3"]
[White "Shyaamnikhil P"]
[Black "Vlachos, Anatole"]
[Result "1-0"]
[ECO "B15"]
[WhiteElo "2390"]
[BlackElo "2482"]
[Annotator "TA"]
[PlyCount "44"]
[EventDate "2024.04.23"]
[EventType "tourn"]
[EventCountry "FRA"]
[SourceTitle "playchess.com"]
[Source "ChessBase"]
[SourceQuality "1"]
[TimeControl "40/5400+30:1800+30"]

{[%evp 14,44,18,23,29,28,40,31,16,2,50,-20,-16,-8,38,43,80,82,85,71,78,53,58,46,156,78,87,69,106,102,325,327,294]} 1. e4 {[%emt 0:00:09]} c6 {[%emt 0:00:14]} 2. d4 {[%emt 0:04:34]} d5 {[%emt 0:00:07]} 3. Nd2 {[%emt 0:00:50]} dxe4 {[%emt 0:00:06]} 4. Nxe4 {[%emt 0:00:04]} Nf6 {[%emt 0:00:05]} 5. Nxf6+ {[%emt 0:02:48]} exf6 {[%emt 0:00:06]} 6. c3 {[%emt 0:04:01]} Bd6 {[%emt 0:00:08]} 7. Bd3 {[%emt 0:00:07]} O-O {[%emt 0:00:06]} 8. Qc2 {[%emt 0:00:03] Active counter play!} Re8+ {[%emt 0:00:08]} 9. Ne2 {[%emt 0:00:05]} h5 {[%emt 0:00:07]} 10. Be3 {[%emt 0:02:46]} Nd7 {[%emt 0:00:10] White is slightly better.} 11. Ng3 {[%emt 0:06:19]} Nf8 {[%emt 0:06:16]} (11... h4 $11 12. Ne2 Nf8) 12. O-O-O {[%emt 0:11:33]} (12. Nxh5 $14 g6 13. Ng3) 12... Be6 $11 {[%emt 0:05:43]} 13. Kb1 {[%emt 0:02:40]} b5 {[%emt 0:04:57]} (13... g6 $11) 14. Be4 $14 {[%emt 0:19:14]} Bd5 {[%emt 0:27:03]} 15. Bxd5 {[%emt 0:01:42]} cxd5 {[%emt 0:00:16]} 16. Qb3 {[%emt 0:03:43]} Be7 {[%emt 0:09:40]} 17. Qxb5 {[%emt 0:05:47]} Rb8 {[%emt 0:01:14]} 18. Qd3 {[%emt 0:01:04]} Qa5 {[%emt 0:01:30]} (18... Qb6 $14 19. Rd2 (19. Nxh5 $2 Qxb2#) 19... Ba3) 19. Nf5 {[%emt 0:13:45]} ({Better is} 19. Nxh5 Rec8 20. Ka1) 19... Ba3 $16 {[%emt 0:01:14]} 20. Bc1 {[%emt 0:00:23]} Rb6 {[%emt 0:03:59]} 21. Ka1 {[%emt 0:04:13]} Reb8 $2 {[%emt 0:00:11] [#]} 22. b4 $18 {[%emt 0:01:08]} (22. bxa3 $2 {gets mated.} Qxc3+ 23. Qxc3 Rb1#) 22... Qa4 {[%emt 0:09:45] Weighted Error Value: White=0.19 (very precise) /Black=0.43.  Loses game:     	---       	Black=1      Mistake:       	White=2     	Black=3      Inaccurate:     	---       	Black=2      OK:         	White=3     	Black=3      Best:        	White=2     	---} 1-0

[Event "1st Festival ChessInLyon-GM 2024"]
[Site "Lyon"]
[Date "2024.04.23"]
[Round "2.4"]
[White "Crut, Aurelien"]
[Black "Tahay, Alexis"]
[Result "1/2-1/2"]
[ECO "B51"]
[WhiteElo "2312"]
[BlackElo "2382"]
[Annotator "TA"]
[PlyCount "62"]
[EventDate "2024.04.23"]
[EventType "tourn"]
[EventCountry "FRA"]
[SourceTitle "playchess.com"]
[Source "ChessBase"]
[SourceQuality "1"]
[TimeControl "40/5400+30:1800+30"]

{[%evp 10,62,0,0,25,15,12,30,16,17,10,21,7,-6,0,0,0,0,12,0,5,13,8,0,0,12,7,9,5,0,16,0,0,0,0,0,47,39,32,45,52,35,28,22,61,42,60,60,108,102,92,104,126,0,72]} 1. e4 {[%emt 0:00:03]} c5 {[%emt 0:00:04]} 2. Nf3 {[%emt 0:00:06]} d6 {[%emt 0:00:03]} 3. Bb5+ {[%emt 0:00:09]} Nd7 {[%emt 0:00:57]} 4. d4 {[%emt 0:00:09]} cxd4 {[%emt 0:00:07]} 5. Qxd4 {[%emt 0:00:12]} a6 {[%emt 0:00:25]} 6. Bxd7+ {[%emt 0:00:20]} Qxd7 {[%emt 0:00:06]} 7. O-O {[%emt 0:05:44]} e5 {[%emt 0:00:19]} 8. Qd3 {[%emt 0:02:00]} Qc6 {[%emt 0:00:17] White has an edge.} 9. c4 {[%emt 0:10:10]} Be6 {[%emt 0:03:55]} 10. b3 {[%emt 0:10:21]} b5 {[%emt 0:05:19]} 11. Na3 {[%emt 0:11:04][%cal Rc4b5]} Nf6 {[%emt 0:06:16]} 12. Re1 {[%emt 0:18:14]} bxc4 {[%emt 0:01:59]} 13. Nxc4 {[%emt 0:01:51]} Bxc4 {[%emt 0:01:37]} 14. Qxc4 {[%emt 0:03:40]} Qxc4 {[%emt 0:01:24]} 15. bxc4 {[%emt 0:00:03]} Rc8 {[%emt 0:00:22]} 16. Bg5 {[%emt 0:06:10]} Rxc4 {[%emt 0:04:16]} 17. Bxf6 {[%emt 0:02:09]} gxf6 {[%emt 0:00:06]} 18. Rab1 {[%emt 0:01:20]} Kd7 {[%emt 0:03:06]} 19. Rb7+ {[%emt 0:06:20]} Rc7 {[%emt 0:01:14]} 20. Rb6 {[%emt 0:05:34]} Be7 {[%emt 0:09:30]} 21. Rxa6 {[%emt 0:01:48]} Rb8 {[%emt 0:00:07]} 22. Nh4 {[%emt 0:02:50]} Rb4 {[%emt 0:03:41]} (22... Rb2 $11) 23. g3 $1 $14 {[%emt 0:02:22]} Rcc4 {[%emt 0:04:25]} 24. Nf5 {[%emt 0:02:29] [#] Black must now prevent Ra7+.} Ra4 {[%emt 0:00:52]} 25. Rxa4 {[%emt 0:00:20]} Rxa4 {[%emt 0:00:01][%mdl 4096] Endgame. KRB-KRN} 26. Re2 {[%emt 0:00:09]} Bd8 {[%emt 0:00:28]} 27. Kg2 {[%emt 0:03:22]} Bb6 {[%emt 0:05:17]} 28. Rb2 {[%emt 0:01:00]} Ra6 {[%emt 0:01:13]} (28... Ba5 $14 {should be considered.}) 29. Kf3 {[%emt 0:00:19] White is more active.} Ke6 {[%emt 0:02:28]} 30. Ng7+ {[%emt 0:05:12]} Ke7 31. Nf5+ (31. Kg4 $142) 31... Ke6 {Weighted Error Value: White=0.08 (flawless) /Black=0.09 (flawless) .  Mistake:       	White=1     	Black=2      Inaccurate:     	---       	Black=1      OK:         	White=9     	Black=11     Best:        	---       	Black=1      Strong:       	White=1     	---} 1/2-1/2

[Event "1st Festival ChessInLyon-GM 2024"]
[Site "Lyon"]
[Date "2024.04.23"]
[Round "2.5"]
[White "Boyer, Mahel"]
[Black "Droin, Augustin"]
[Result "1/2-1/2"]
[ECO "A13"]
[WhiteElo "2432"]
[BlackElo "2478"]
[Annotator "TA"]
[PlyCount "113"]
[EventDate "2024.04.23"]
[EventType "tourn"]
[EventCountry "FRA"]
[SourceTitle "playchess.com"]
[Source "ChessBase"]
[SourceQuality "1"]
[TimeControl "40/5400+30:1800+30"]

{[%evp 9,113,5,14,12,13,18,5,16,20,19,17,14,10,4,8,-3,30,0,49,36,38,21,8,11,56,58,47,54,91,91,99,88,88,59,59,59,59,63,69,59,77,83,105,101,120,123,116,122,119,76,198,125,127,125,125,125,125,125,167,167,233,125,125,125,140,140,140,140,156,143,178,171,178,178,178,75,178,178,178,178,178,178,178,178,178,178,178,136,136,114,156,156,178,55,54,54,54,37,37,37,37,37,37,37,37,-8]} 1. Nf3 {[%emt 0:00:47]} d5 {[%emt 0:00:32]} 2. e3 {[%emt 0:00:22]} Nf6 {[%emt 0:00:22]} 3. b3 {[%emt 0:00:41]} e6 {[%emt 0:01:07]} 4. Bb2 {[%emt 0:00:07]} Bd6 {[%emt 0:00:24]} 5. c4 {[%emt 0:00:08]} b6 {[%emt 0:00:15]} 6. Nc3 {[%emt 0:00:56][%cal Bb1c3,Bc3e2,Be2f4][%mdl 32]} a6 {[%emt 0:00:22]} 7. cxd5 {[%emt 0:01:24]} exd5 {[%emt 0:00:05]} 8. g3 {[%emt 0:00:07] The position is equal.} O-O {[%emt 0:01:02]} 9. Bg2 {[%emt 0:00:09]} Bb7 {[%emt 0:04:11]} 10. O-O {[%emt 0:01:06]} Nbd7 {[%emt 0:00:13]} 11. Ne2 {[%emt 0:01:24]} Re8 {[%emt 0:01:04]} 12. Nf4 {[%emt 0:07:27]} Nc5 {[%emt 0:10:10]} 13. Qc2 {[%emt 0:06:44]} Ne6 {[%emt 0:10:11]} (13... c6 $11) 14. Rfe1 {[%emt 0:14:49]} c5 {[%emt 0:04:51]} 15. Nh4 {[%emt 0:04:29][%cal Bf3h4,Bh4f5,Bf5d4][%mdl 32]} Nxf4 {[%emt 0:07:55]} 16. exf4 {[%emt 0:00:23]} Rxe1+ {[%emt 0:01:25]} 17. Rxe1 {[%emt 0:00:05]} Bf8 {[%emt 0:00:23]} 18. Nf5 {[%emt 0:07:18]} Qd7 {[%emt 0:25:14]} 19. Bxf6 {[%emt 0:12:28]} gxf6 {[%emt 0:00:04]} 20. h4 {[%emt 0:00:30] White has more active pieces.} a5 {[%emt 0:10:23]} 21. d4 {[%emt 0:07:34]} Re8 {[%emt 0:01:38]} 22. Rd1 {[%emt 0:01:10]} cxd4 {[%emt 0:03:16]} 23. Nxd4 {[%emt 0:01:04]} Bc5 {[%emt 0:00:06]} 24. Qd3 {[%emt 0:00:44]} Qg4 {[%emt 0:01:04]} 25. Bf3 {[%emt 0:07:01]} Qg6 {[%emt 0:00:05]} 26. Qc3 {[%emt 0:01:32] [#] aiming for h5.} f5 {[%emt 0:01:42]} 27. Qd3 {[%emt 0:02:52]} Bc8 {[%emt 0:02:06]} 28. Bxd5 {[%emt 0:05:24]} Rd8 {[%emt 0:00:41]} 29. Qf3 {[%emt 0:00:03]} ({But not} 29. Nc6 $2 Rxd5 $19) 29... Bb7 {[%emt 0:01:52] [#]} 30. Bxb7 {[%emt 0:08:33]} ({White should play} 30. Nxf5 $1 $18 {Threatens to win with Bxf7+.} Bc8 31. Ne3) 30... Rxd4 $16 {[%emt 0:01:52]} 31. Rxd4 {[%emt 0:00:07]} Bxd4 $18 {[%emt 0:00:03][%mdl 4096] Endgame. KQB-KQB} 32. Bc8 {[%emt 0:00:20][%cal Bb7c8,Bc8f5,Bf5b1,Bb1d3][%mdl 32]} Bc5 {[%emt 0:02:50]} 33. Qd3 {[%emt 0:01:30]} Qf6 {[%emt 0:00:07]} 34. Bxf5 {[%emt 0:00:06]} Qa1+ {[%emt 0:00:42]} (34... Qb2 {is a better defense.} 35. Qc2 (35. Bxh7+ Kh8 $18) 35... Qxc2 36. Bxc2 Kh8) 35. Qb1 {[%emt 0:00:13]} (35. Kg2 $18) 35... Qxb1+ $16 {[%emt 0:00:32]} 36. Bxb1 {[%emt 0:00:04] KB-KB} f6 {[%emt 0:00:11]} 37. Kg2 {[%emt 0:00:21]} h6 {[%emt 0:00:10]} 38. g4 {[%emt 0:04:39][%cal Bg3g4,Bg4g5][%mdl 32]} Kg7 {[%emt 0:00:46]} 39. Kf3 {[%emt 0:00:25]} Bd4 {[%emt 0:01:16]} 40. g5 {[%emt 0:01:41]} Bc5 {[%emt 0:00:20]} 41. Bd3 {[%emt 0:32:42]} Bd4 {[%emt 0:30:16]} 42. Bb5 {[%emt 0:00:07]} (42. Kg3 $18 {has better winning chances.}) 42... Bc5 {[%emt 0:00:27]} (42... fxg5 $16 43. hxg5 (43. fxg5 hxg5 44. hxg5 Kg6 $14) 43... hxg5) 43. Kg3 $18 {[%emt 0:00:15]} Bd4 {[%emt 0:00:12]} 44. Be8 {[%emt 0:00:09]} Bc5 {[%emt 0:00:46]} 45. f3 {[%emt 0:00:16]} Be3 {[%emt 0:00:35]} 46. Kg4 {[%emt 0:00:02]} Bc1 {[%emt 0:00:15]} 47. Kf5 {[%emt 0:00:32]} Bb2 {[%emt 0:00:18]} 48. Ke6 {[%emt 0:00:19]} Bc3 {[%emt 0:00:17]} 49. Kd5 {[%emt 0:00:00]} Bd2 {[%emt 0:00:00]} 50. Kc6 {[%emt 0:00:00]} Be3 {[%emt 0:00:00]} 51. Bd7 {[%emt 0:00:00]} (51. g6 $18) 51... fxg5 {[%emt 0:00:00] White is slightly better.} 52. fxg5 {[%emt 0:00:00]} hxg5 {[%emt 0:00:00]} 53. hxg5 {[%emt 0:00:00]} Kg6 $1 {[%emt 0:00:00] Prevents Bf5+} 54. f4 {[%emt 0:00:00]} Bxf4 {[%emt 0:00:00]} 55. Kxb6 {[%emt 0:00:00]} Bd2 {[%emt 0:00:00]} 56. Be8+ {[%emt 0:00:00]} Kxg5 {[%emt 0:00:00]} 57. Bh5 {[%emt 0:00:00] White really could win this.   Weighted Error Value: White=0.16 (very precise) /Black=0.16 (very precise) .  Mistake:       	White=4     	Black=4      Inaccurate:     	White=4     	Black=5      OK:         	White=17    	Black=14     Best:        	---       	Black=3      Strong:       	---       	Black=1} 1/2-1/2

[Event "1st Festival ChessInLyon-GM 2024"]
[Site "Lyon"]
[Date "2024.04.23"]
[Round "3.1"]
[White "Vlachos, Anatole"]
[Black "Crut, Aurelien"]
[Result "1-0"]
[ECO "C15"]
[WhiteElo "2482"]
[BlackElo "2312"]
[Annotator "TA"]
[PlyCount "57"]
[EventDate "2024.04.23"]
[EventType "tourn"]
[EventCountry "FRA"]
[SourceTitle "playchess.com"]
[Source "ChessBase"]
[SourceQuality "1"]
[TimeControl "40/5400+30:1800+30"]

{[%evp 11,57,15,20,25,26,0,26,0,0,0,0,0,0,0,28,28,72,77,65,72,68,60,64,64,72,66,195,200,189,161,224,219,282,277,266,256,275,270,546,385,416,411,1313,1318,1040,1028,1443,538]} 1. e4 {[%emt 0:00:03]} e6 {[%emt 0:00:05]} 2. d4 {[%emt 0:00:05]} d5 {[%emt 0:00:04]} 3. Nc3 {[%emt 0:00:05]} Bb4 {[%emt 1:31:51][%cal Bf8b4,Bb4a5,Ba5b6][%mdl 32]} 4. Nge2 {[%emt 0:00:10]} Nc6 {[%emt 0:00:25]} 5. a3 {[%emt 0:00:15]} Ba5 {[%emt 0:00:29]} 6. b4 {[%emt 0:00:07]} Bb6 {[%emt 0:00:06]} 7. Bb2 {[%emt 0:00:05]} Nge7 {[%emt 0:02:20]} 8. Na4 {[%emt 0:00:35]} O-O {[%emt 0:04:19]} 9. Ng3 {[%emt 0:03:43][%cal Be2g3,Bg3e4,Be4g5,Bg5f3,Bf3e5][%mdl 32] White has an edge.} dxe4 {[%emt 0:18:23]} 10. Nxb6 {[%emt 0:00:08]} axb6 {[%emt 0:00:06]} 11. b5 {[%emt 0:06:40]} Na5 {[%emt 0:09:12]} 12. Nxe4 {[%emt 0:00:07]} Ng6 {[%emt 0:08:27] [#]} 13. h4 $1 {[%emt 0:03:17]} f5 {[%emt 0:52:49]} (13... h6 14. h5) 14. Ng5 {[%emt 1:22:10] And now Qh5 would win.} h6 {[%emt 0:06:21]} 15. Nf3 {[%emt 0:00:04]} Qd5 {[%emt 0:10:42]} 16. h5 {[%emt 1:22:20]} Qe4+ {[%emt 0:07:22]} 17. Qe2 {[%emt 1:20:18]} (17. Kd2 {seems wilder.} Qf4+ 18. Ke1 Qe4+ 19. Qe2) 17... Qxe2+ $1 {[%emt 0:01:21]} 18. Bxe2 {[%emt 0:00:02]} Nh8 {[%emt 0:04:15] A mistake that costs the game.} (18... Nf4 $14) 19. Ne5 $18 {[%emt 0:02:14]} Nf7 {[%emt 0:01:51] [#]} 20. O-O-O $1 {[%emt 0:00:12]} Rd8 {[%emt 0:01:49]} (20... Ng5 $142 21. f3 Nh7) 21. g4 {[%emt 0:08:40]} Nxe5 {[%emt 0:04:55]} 22. dxe5 {[%emt 1:11:01][%cal Bd4e5,Be5e6][%mdl 32]} Bd7 {[%emt 0:00:24]} 23. Rd3 {[%emt 0:02:50]} Be8 {[%emt 0:02:10]} 24. gxf5 {[%emt 0:00:06]} exf5 $2 {[%emt 0:03:18]} (24... Rxd3 25. Bxd3 Bf7) 25. e6 {[%emt 0:00:07]} Rxd3 {[%emt 0:01:05]} 26. Bxd3 {[%emt 0:00:06][%cal Oh1g1] aiming for Rg1! A strong pair of Bishops.} Rd8 {[%emt 0:01:28]} (26... Kf8 $142 27. Rg1 (27. Bxf5 Nc4 $16) 27... Ke7 28. Rxg7+ (28. Bxf5 Nc4 $18) 28... Kd6) 27. Rg1 {[%emt 0:00:30] White is clearly winning.} g5 {[%emt 0:00:42]} 28. hxg6 {[%emt 0:00:04][%cal Og1h1] Intending Rh1! and mate.} Rd6 {[%emt 0:00:39]} 29. g7 {[%emt 0:00:38] Weighted Error Value: White=0.13 (very precise) /Black=0.38.  Mistake:       	---       	Black=4      Inaccurate:     	White=2     	Black=3      OK:         	White=10    	Black=9      Best:        	White=3     	---        Strong:       	---       	Black=1} (29. Bxf5 $142 Rd5 30. Be4 (30. Bd3 Nb3+ 31. Kb1 Rxd3 $18)) 1-0

[Event "1st Festival ChessInLyon-GM 2024"]
[Site "Lyon"]
[Date "2024.04.23"]
[Round "3.2"]
[White "Gatineau, Yovann"]
[Black "Shyaamnikhil P"]
[Result "1/2-1/2"]
[ECO "E11"]
[WhiteElo "2408"]
[BlackElo "2390"]
[Annotator "TA"]
[PlyCount "61"]
[EventDate "2024.04.23"]
[EventType "tourn"]
[EventCountry "FRA"]
[SourceTitle "playchess.com"]
[Source "ChessBase"]
[SourceQuality "1"]
[TimeControl "40/5400+30:1800+30"]

{[%evp 10,61,18,15,32,24,34,29,25,26,32,11,15,0,77,70,80,64,80,86,79,88,89,62,210,191,207,177,177,181,167,76,89,66,70,8,56,49,64,7,0,0,0,-29,-29,-29,0,-33,-6,-36,-36,-32,-18,-18]} 1. d4 {[%emt 0:00:16]} Nf6 {[%emt 0:00:37]} 2. c4 {[%emt 0:00:06]} e6 {[%emt 0:03:17]} 3. Nf3 {[%emt 0:00:17]} Bb4+ {[%emt 0:02:28]} 4. Nbd2 {[%emt 0:00:10]} O-O {[%emt 0:01:39]} 5. a3 {[%emt 0:00:31]} Be7 {[%emt 0:00:47]} 6. e4 {[%emt 0:00:07]} d6 {[%emt 0:00:30][%cal Oe6e5]} 7. Be2 {[%emt 0:02:14]} Nfd7 {[%emt 0:04:00]} 8. b4 {[%emt 0:02:08][%cal Bb2b4,Bb4b5][%mdl 32]} e5 {[%emt 0:06:48] White has an edge.} 9. d5 {[%emt 0:05:22]} a5 {[%emt 0:05:33]} 10. Bb2 {[%emt 0:01:25]} c6 {[%emt 0:05:19]} 11. O-O {[%emt 0:00:51]} c5 {[%emt 0:15:39]} (11... cxd5 $11 12. cxd5 (12. exd5 Nf6 $14) 12... axb4) 12. b5 $16 {[%emt 0:01:37]} g6 {[%emt 0:03:50][%cal Bg7g6,Bg6f5][%mdl 32]} 13. Ne1 {[%emt 0:02:25]} Bf6 {[%emt 0:01:15]} 14. g3 {[%emt 0:02:12]} Bg7 {[%emt 0:02:53]} 15. Ng2 {[%emt 0:00:35]} Qe7 {[%emt 0:01:54]} 16. Qc2 {[%emt 0:02:23]} f5 {[%emt 0:06:53]} (16... Nf6 $14) 17. exf5 $18 {[%emt 0:01:05]} gxf5 {[%emt 0:00:07]} 18. f4 {[%emt 0:00:41]} e4 {[%emt 0:01:27]} 19. Bxg7 {[%emt 0:02:09]} Qxg7 {[%emt 0:00:16] [#]} 20. Kh1 {[%emt 0:05:33]} (20. g4 $1 $18 {and White stays clearly on top.}) 20... Nf6 $16 {[%emt 0:00:31]} 21. Ne3 {[%emt 0:06:11][%cal Og3g4]} h5 {[%emt 0:00:37]} 22. Rg1 {[%emt 0:06:23] White is more active.} (22. h3 $14) 22... Qh7 {[%emt 0:04:30]} (22... Ng4 $11 {might be stronger.} 23. Bxg4 hxg4) 23. Raf1 {[%emt 0:11:57]} Ng4 {[%emt 0:06:33]} 24. Bxg4 {[%emt 0:01:21]} ({White should play} 24. Ng2 $14) 24... hxg4 $11 {[%emt 0:00:08]} 25. Qc3 {[%emt 0:03:28]} Nd7 {[%emt 0:04:43]} 26. Rg2 {[%emt 0:00:45]} Nf6 {[%emt 0:02:13]} 27. Kg1 {[%emt 0:00:47][%cal Bh1g1,Bg1f2,Bf2e1,Be1d1,Bd1c1][%mdl 32]} Kf7 {[%emt 0:01:53]} 28. Kf2 {[%emt 0:00:20]} Rh8 {[%emt 0:01:56]} 29. Ke1 {[%emt 0:01:24]} Bd7 {[%emt 0:03:21]} 30. Kd1 {[%emt 0:00:39]} Qg6 {[%emt 0:01:03]} 31. Kc1 {[%emt 0:02:12] Black escapes into a draw.   Weighted Error Value: White=0.20 (precise) /Black=0.23 (precise) .  Mistake:       	White=3     	Black=3      Inaccurate:     	White=4     	Black=2      OK:         	White=8     	Black=9      Best:        	White=1     	Black=1} 1/2-1/2

[Event "1st Festival ChessInLyon-GM 2024"]
[Site "Lyon"]
[Date "2024.04.23"]
[Round "3.3"]
[White "Droin, Augustin"]
[Black "Poetsch, Hagen"]
[Result "1/2-1/2"]
[ECO "C42"]
[WhiteElo "2478"]
[BlackElo "2460"]
[Annotator "TA"]
[PlyCount "110"]
[EventDate "2024.04.23"]
[EventType "tourn"]
[EventCountry "FRA"]
[SourceTitle "playchess.com"]
[Source "ChessBase"]
[SourceQuality "1"]
[TimeControl "40/5400+30:1800+30"]

{[%evp 28,110,23,24,29,25,24,28,27,31,65,45,106,102,128,135,150,135,122,0,95,96,87,86,59,23,118,62,60,43,45,56,39,8,31,8,14,16,8,7,6,0,22,0,12,0,0,0,0,0,0,0,0,0,0,0,0,0,0,0,0,0,0,0,0,0,0,0,0,0,0,0,0,0,0,0,0,0,0,0,0,0,0,-8,-8]} 1. e4 {[%emt 0:08:22]} e5 {[%emt 0:00:27]} 2. Nf3 {[%emt 0:00:10]} Nf6 {[%emt 0:00:05]} 3. Nxe5 {[%emt 0:03:08]} d6 {[%emt 0:00:08]} 4. Nd3 {[%emt 0:00:11]} Nxe4 {[%emt 0:00:07]} 5. Qe2 {[%emt 0:00:13]} Qe7 {[%emt 0:00:04]} 6. Nf4 {[%emt 0:00:05] C42: Petroff Defence: 3 Nxe5 and unusual White 3rd moves.} Nf6 {[%emt 0:01:19]} 7. d4 {[%emt 0:01:28]} Qxe2+ {[%emt 0:00:35]} 8. Bxe2 {[%emt 0:00:07]} d5 {[%emt 0:06:34]} 9. c3 $146 {[%emt 0:00:28]} ({Predecessor:} 9. f3 Bd6 10. g4 c6 11. h4 O-O 12. h5 h6 13. c3 Re8 14. Kf2 Nbd7 15. Na3 {½-½ Deac,B (2700)-Jobava,B (2578) Titled Tuesday intern op 22nd Nov Late blitz 2022 (6)}) 9... Bd6 {[%emt 0:00:32]} 10. Na3 {[%emt 0:00:17]} c6 {[%emt 0:01:03]} 11. Nc2 {[%emt 0:00:04]} O-O {[%emt 0:03:00]} 12. f3 {[%emt 0:02:05]} Bf5 {[%emt 0:03:33]} 13. Bd3 {[%emt 0:24:50]} Bxd3 {[%emt 0:06:31]} 14. Nxd3 {[%emt 0:00:53]} Nbd7 {[%emt 0:00:32]} 15. g4 {[%emt 0:01:29]} Rfe8+ {[%emt 0:05:30]} 16. Kf2 {[%emt 0:00:07]} Re7 {[%emt 0:05:23]} 17. Bf4 {[%emt 0:02:23]} Bxf4 {[%emt 0:02:31]} 18. Nxf4 {[%emt 0:00:04]} g5 {[%emt 0:02:24]} 19. Ng2 {[%emt 0:05:21]} Rae8 {[%emt 0:06:53] [#]} ({Black should play} 19... Ne8 $1 $14) 20. Nce3 $1 $16 {[%emt 0:01:30]} h5 {[%emt 0:13:13]} 21. h4 {[%emt 0:00:18]} gxh4 {[%emt 0:02:07]} 22. g5 {[%emt 0:17:16]} Nh7 {[%emt 0:00:06]} 23. f4 {[%emt 0:00:03]} (23. Rxh4 $16 Nxg5 24. Rxh5) 23... Ndf8 {[%emt 0:02:24]} (23... f6 $11 {remains equal.}) 24. Rxh4 $16 {[%emt 0:06:03]} f6 {[%emt 0:05:37]} 25. Rxh5 {[%emt 0:03:48]} (25. Rah1 {seems wilder.} fxg5 26. Rxh5 Ng6 27. fxg5 Rf7+ 28. Ke2) 25... fxg5 {[%emt 0:00:22]} 26. fxg5 {[%emt 0:00:45]} (26. Rah1 {is more complex.} gxf4 27. Nf5 Re2+ 28. Kf3) 26... Rf7+ {[%emt 0:08:52]} (26... Rg7 $11) 27. Ke2 {[%emt 0:01:40]} (27. Kg3 $16) 27... Rg7 $14 {[%emt 0:01:31]} 28. Kd3 {[%emt 0:04:34]} (28. Nh4 {is interesting.} Nxg5 29. Nhf5 Rg6 30. Kd3) 28... Rxg5 {[%emt 0:00:29]} 29. Rxg5+ {[%emt 0:00:25]} Nxg5 {[%emt 0:00:06]} 30. Nf5 {[%emt 0:00:51]} Ng6 {[%emt 0:03:18]} 31. Rg1 {[%emt 0:02:17]} Nh3 {[%emt 0:02:39]} 32. Rf1 {[%emt 0:00:11]} Re6 {[%emt 0:06:05]} 33. Nh6+ {[%emt 0:03:45]} Kg7 {[%emt 0:00:30]} 34. Nf5+ {[%emt 0:00:15]} Kg8 {[%emt 0:00:11]} 35. Nh6+ {[%emt 0:00:40]} Kg7 {[%emt 0:00:05]} 36. Nf7 {[%emt 0:01:12]} b6 {[%emt 0:03:05]} 37. a4 {[%emt 0:04:16]} (37. Nd8 Rd6 38. Rf7+ Kg8) 37... c5 {[%emt 0:03:43]} 38. b3 {[%emt 0:01:38]} Rf6 {[%emt 0:02:03]} 39. Rxf6 {[%emt 0:00:05]} Kxf6 {[%emt 0:00:05]} 40. Nd6 {[%emt 0:05:21]} Ne7 {[%emt 0:02:27]} 41. dxc5 {[%emt 0:31:49]} bxc5 {[%emt 0:30:10]} 42. Nb7 {[%emt 0:00:07]} Nf2+ {[%emt 0:01:06]} 43. Kc2 {[%emt 0:00:00]} Ne4 {[%emt 0:00:00]} 44. Nf4 {[%emt 0:00:00]} Kf5 {[%emt 0:00:00]} 45. Nd3 {[%emt 0:00:00]} c4 {[%emt 0:00:00]} 46. bxc4 {[%emt 0:00:00]} dxc4 {[%emt 0:00:00]} 47. Nb2 {[%emt 0:00:00]} Nd5 {[%emt 0:00:00]} 48. Nxc4 {[%emt 0:00:00]} Nexc3 {[%emt 0:00:00]} 49. Ne3+ {[%emt 0:00:00]} Ke4 {[%emt 0:00:00]} 50. Nxd5 {[%emt 0:00:00]} Nxd5 {[%emt 0:00:00]} 51. Nd6+ {[%emt 0:00:00]} Kd4 {[%emt 0:00:00]} 52. Nb5+ {[%emt 0:00:00]} Kc4 {[%emt 0:00:00]} 53. Nxa7 {[%emt 0:00:00]} Kb4 {[%emt 0:00:00]} 54. Nc6+ {[%emt 0:00:00]} Kxa4 {[%emt 0:00:00]} 55. Nb4 {[%emt 0:00:00]} Kxb4 {[%emt 0:00:00]} 1/2-1/2